bitfinex-derivatives/quotes_ETHF0:USTF0_20260112
["timestamp","ask_amount","ask_price","bid_price","bid_amount"]
[1768180481574,0.00339788,3130.8,3129.6,0.15998]
[1768180481768,0.00339788,3130.8,3129.7,0.98215585]
[1768180481968,0.14733495,3130.8,3129.7,0.98215585]
[1768180482871,0.00339788,3130.8,3129.7,0.98215585]
[1768180483470,0.00339788,3130.8,3129.6,0.15998]
[1768180485772,0.00339788,3130.8,3129.6,1.58198]
[1768180485962,0.14733495,3130.8,3129.2,0.13153837]
[1768180486168,0.14733495,3130.8,3129.3,1.422]
[1768180486777,0.14733495,3130.8,3129.2,0.16]
[1768180486969,0.14733495,3130.8,3129.3,1.423]
[1768180488071,0.14733495,3130.8,3128.8,1.11370771]
[1768180488072,0.14393707,3130.6,3128.8,2.5516701]
[1768180488380,0.00339788,3130.8,3128.8,2.5516701]
[1768180488381,0.14393707,3130.2,3128.9,1.425]
[1768180490473,1.12553631,3130.7,3128.9,1.58502]
[1768180490680,0.14393707,3130.7,3128.9,2.56661924]
[1768180491281,0.14393707,3130.7,3128.9,2.6983188]
[1768180492080,0.14393707,3130.7,3128.9,0.16002]
[1768180492380,0.14393707,3130.7,3129.0,1.425]
[1768180494681,0.14393707,3130.7,3128.9,0.16002]
[1768180494980,0.14393707,3130.6,3128.9,0.16002]
[1768180495883,0.14393707,3130.6,3129.0,2.25954163]
[1768180500882,0.14393707,3130.6,3129.0,2.39287851]
[1768180501182,0.00339788,3130.8,3129.1,2.41955163]
[1768180501686,0.14733495,3130.8,3129.1,2.41955163]
[1768180501879,0.14393707,3130.3,3129.1,2.25954163]
[1768180502287,0.98159924,3130.0,3128.8,2.25954163]
[1768180502581,0.14393707,3129.5,3128.6,0.00229366]
[1768180504885,0.14393707,3129.5,3128.7,1.1924]
[1768180506886,0.13750321,3130.0,3128.7,1.1924]
[1768180507389,3.199,3130.4,3128.7,1.1924]
[1768180507390,0.13750321,3130.3,3128.7,1.1924]
[1768180507780,6.614,3130.4,3128.7,1.1924]
[1768180507781,0.13750321,3130.0,3128.7,1.1924]
[1768180510588,1.299,3130.4,3128.7,1.1924]
[1768180510589,0.14313408,3129.7,3128.7,1.1924]
[1768180510786,1.12473332,3128.9,3127.1,2.39410118]
[1768180510993,0.14313408,3128.8,3127.0,2.41965163]
[1768180511177,0.14313408,3128.8,3126.7,2.89880923]
[1768180511178,1.12473332,3128.5,3126.7,2.25954163]
[1768180511379,0.14313408,3128.4,3126.6,0.13455955]
[1768180511583,0.14313408,3128.4,3126.3,3.84469163]
[1768180511785,0.14600421,3128.4,3126.3,1.72180151]
[1768180512686,0.14313408,3128.3,3126.3,0.29680151]
[1768180512888,0.14313408,3128.0,3126.3,0.00250071]
[1768180513994,0.00287013,3128.4,3126.3,0.29559407]
[1768180514192,0.00287013,3128.4,3126.4,0.13294336]
[1768180514386,0.00287013,3128.4,3126.5,0.2930832]
[1768180514985,0.14600421,3128.4,3126.5,0.2930832]
[1768180515388,0.14313408,3127.8,3126.3,0.00250071]
[1768180515691,0.14313408,3127.7,3126.3,0.00250071]
[1768180516794,0.14313408,3127.6,3126.3,0.00250071]
[1768180518203,0.14313408,3127.5,3126.1,1.3412]
[1768180518593,0.14313408,3127.4,3124.6,0.16024]
[1768180518896,0.14313408,3127.3,3124.7,0.13578842]
[1768180519101,0.16014,3126.6,3124.7,0.0028783]
[1768180519299,0.14313408,3126.4,3124.7,0.0028783]
[1768180519487,0.14313408,3126.2,3124.7,0.0028783]
[1768180519798,0.14645447,3126.2,3124.7,0.0028783]
[1768180520001,1.299,3126.1,3124.7,0.0028783]
[1768180520393,1.44213408,3126.1,3124.7,0.0028783]
[1768180521199,0.14313408,3126.0,3124.7,0.0028783]
[1768180521502,0.14313408,3125.6,3123.0,0.13578842]
[1768180521704,0.14313408,3125.5,3123.0,0.13578842]
[1768180521906,0.14313408,3125.3,3123.0,0.13578842]
[1768180522094,3.202,3125.2,3123.0,0.13578842]
[1768180522397,0.14313408,3125.1,3123.1,0.9418]
[1768180522598,0.14313408,3125.1,3123.2,0.13578842]
[1768180522800,0.30329408,3126.1,3123.4,0.13578842]
[1768180522999,1.60229408,3126.1,3123.5,0.13578842]
[1768180523398,0.14313408,3126.1,3123.8,0.13578842]
[1768180523699,0.14313408,3126.1,3123.9,0.13578842]
[1768180523893,0.00332039,3126.2,3123.9,0.13578842]
[1768180524294,0.00332039,3126.2,3124.0,0.13578842]
[1768180525596,0.00332039,3126.2,3124.2,0.13578842]
[1768180525802,0.00332039,3126.2,3124.3,0.29603842]
[1768180525997,0.00332039,3126.2,3124.4,0.13578842]
[1768180527598,0.00332039,3126.2,3124.6,0.13578842]
[1768180528692,0.00332039,3126.2,3124.7,0.13578842]
[1768180530500,0.00332039,3126.2,3124.8,0.13578842]
[1768180531001,0.16011,3127.1,3124.8,0.13578842]
[1768180531205,0.14313408,3127.0,3124.9,0.13578842]
[1768180532002,0.14641531,3127.0,3124.7,1.58723]
[1768180532606,0.14641531,3127.0,3124.8,0.13578842]
[1768180533302,0.14641531,3127.0,3124.7,1.58723]
[1768180533303,0.00328123,3127.0,3125.2,0.13578842]
[1768180533608,0.00328123,3127.0,3125.2,0.13952449]
[1768180533804,0.00328123,3127.0,3125.3,0.29598842]
[1768180534910,0.00328123,3127.0,3125.4,0.13357535]
[1768180536199,0.00328123,3127.0,3125.4,0.29377535]
[1768180536397,0.00328123,3127.0,3125.5,0.13357535]
[1768180537110,0.00328123,3127.0,3125.5,0.29376535]
[1768180537307,0.00328123,3127.0,3125.6,0.13357535]
[1768180537510,0.13850785,3128.0,3125.9,0.13357535]
[1768180537814,0.13850785,3128.0,3126.2,0.13357535]
[1768180538112,3.34150785,3128.5,3126.3,0.13357535]
[1768180538304,0.13850785,3128.4,3126.3,0.13357535]
[1768180538707,0.14095161,3128.4,3126.3,0.13357535]
[1768180539707,0.14095161,3128.4,3126.4,0.13357535]
[1768180539910,0.00244376,3128.4,3126.6,0.13357535]
[1768180540602,0.14095161,3128.4,3126.6,0.13357535]
[1768180540804,0.14095161,3128.4,3126.1,0.13357535]
[1768180541200,0.16007,3128.0,3125.5,0.13357535]
[1768180541400,0.13850785,3127.9,3125.5,0.13357535]
[1768180541608,0.13850785,3127.9,3125.7,0.13357535]
[1768180542201,0.13850785,3127.8,3125.7,0.13357535]
[1768180542605,0.29859785,3127.5,3125.2,0.13731142]
[1768180542905,0.13850785,3127.4,3125.2,0.13731142]
[1768180545309,0.13850785,3127.3,3125.2,0.13731142]
[1768180545708,0.13850785,3126.9,3125.2,0.00373607]
[1768180547815,0.13850785,3126.4,3125.2,0.00373607]
[1768180550115,0.29865785,3126.4,3125.2,0.00373607]
[1768180550306,0.13850785,3126.3,3125.2,0.00373607]
[1768180551811,1.299,3126.7,3125.2,0.00373607]
[1768180552013,0.13850785,3126.8,3125.2,0.00373607]
[1768180553817,0.13850785,3126.7,3125.2,0.00373607]
[1768180554018,0.13850785,3126.6,3125.2,0.00373607]
[1768180554514,0.13850785,3126.5,3125.2,0.00373607]
[1768180554714,5.61364785,3126.5,3125.2,0.00373607]
[1768180555517,0.29864785,3126.5,3125.2,0.00373607]
[1768180555724,1.3,3126.4,3125.2,0.00373607]
[1768180558716,1.43850785,3126.5,3125.2,0.00373607]
[1768180559730,0.13850785,3126.4,3125.2,0.00373607]
[1768180561325,0.13850785,3126.3,3125.2,0.00373607]
[1768180562823,6.75350785,3126.5,3125.2,0.00373607]
[1768180563024,0.13850785,3126.4,3125.2,0.00373607]
[1768180563723,0.13850785,3126.3,3125.2,0.00373607]
[1768180563920,0.13850785,3126.3,3124.1,0.13294369]
[1768180564624,0.13794863,3126.0,3124.1,0.13294369]
[1768180565018,0.14163159,3126.0,3124.1,0.13679532]
[1768180565618,0.13794863,3125.9,3124.1,0.13679532]
[1768180567714,0.16385296,3126.0,3124.3,0.13294369]
[1768180567715,0.00368296,3126.0,3124.3,0.13294369]
[1768180568026,0.00368296,3126.0,3124.4,0.16025]
[1768180568228,0.14163159,3126.0,3124.1,0.00385163]
[1768180568427,0.14163159,3126.0,3124.1,0.13679532]
[1768180568733,0.14163159,3126.0,3124.2,0.13294369]
[1768180569416,0.14163159,3126.0,3124.3,1.0036]
[1768180571728,0.14435264,3125.9,3124.3,1.0036]
[1768180573721,0.00368296,3126.0,3124.4,0.13862753]
[1768180573924,0.00368296,3126.0,3124.4,0.29887753]
[1768180574116,0.00368296,3126.0,3124.5,2.42612402]
[1768180574325,0.00368296,3126.0,3124.6,0.13862753]
[1768180575217,0.00368296,3126.0,3124.6,2.42612402]
[1768180575620,0.00368296,3126.0,3124.7,0.13862753]
[1768180576835,0.14435264,3126.9,3124.8,0.13862753]
[1768180577129,0.14435264,3126.9,3125.0,0.13862753]
[1768180577323,5.47511,3127.2,3125.2,0.13862753]
[1768180577626,5.47511,3127.2,3124.9,2.28749649]
[1768180577627,0.14435264,3127.4,3125.4,0.1602]
[1768180577832,0.14689134,3127.4,3125.5,0.13862753]
[1768180578234,0.14689134,3127.4,3125.4,0.1602]
[1768180578427,0.14689134,3127.4,3125.5,0.13862753]
[1768180578629,0.14689134,3127.4,3125.6,0.13862753]
[1768180578931,0.0025387,3127.4,3125.7,0.29880753]
[1768180579233,0.0025387,3127.4,3125.8,0.13862753]
[1768180579623,0.0025387,3127.4,3125.9,0.13862753]
[1768180580926,0.0025387,3127.4,3125.5,2.42612402]
[1768180581226,0.14689134,3127.4,3125.3,2.28749649]
[1768180581429,0.14435264,3127.3,3125.1,0.29883753]
[1768180581626,0.14435264,3127.1,3124.6,7.05112402]
[1768180581831,0.14435264,3126.9,3124.7,0.13862753]
[1768180584329,0.14435264,3126.8,3124.7,0.13862753]
[1768180584721,0.14435264,3126.5,3124.3,1.0036]
[1768180584922,0.14435264,3126.3,3124.3,1.0036]
[1768180585627,0.14435264,3126.3,3124.3,1.14222753]
[1768180585929,1.3,3126.2,3124.4,0.13862753]
[1768180586230,0.14435264,3126.1,3124.4,0.13862753]
[1768180589625,0.14435264,3126.1,3124.3,1.0036]
[1768180591536,0.14435264,3126.1,3124.4,0.13862753]
[1768180591832,0.14435264,3126.7,3124.4,0.13862753]
[1768180592034,0.14435264,3126.5,3124.4,0.13862753]
[1768180592436,0.14435264,3126.5,3124.4,0.29887753]
[1768180592637,1.301,3126.4,3124.6,0.13862753]
[1768180592829,1.301,3126.4,3124.7,0.13862753]
[1768180593033,0.14435264,3126.3,3124.6,0.16024]
[1768180593225,0.14435264,3126.3,3124.3,1.0036]
[1768180594131,0.14508834,3126.2,3124.3,1.0036]
[1768180594837,0.14508834,3126.2,3124.3,1.14045975]
[1768180596235,0.14508834,3126.2,3124.4,0.13685975]
[1768180597139,0.14508834,3126.2,3124.3,1.0036]
[1768180599935,0.14508834,3126.1,3124.3,1.0036]
[1768180600134,0.14508834,3125.4,3124.3,1.0036]
[1768180600337,0.14508834,3125.2,3124.3,1.0036]
[1768180600542,0.1474608,3125.2,3124.3,0.85719924]
[1768180600744,0.00237246,3125.2,3124.3,0.71079848]
[1768180602449,0.25816684,3125.2,3124.3,0.71079848]
[1768180603851,0.00237246,3125.2,3124.3,0.71079848]
[1768180607539,0.00237246,3125.2,3124.3,0.84765823]
[1768180607740,0.00237246,3125.2,3124.4,0.13685975]
[1768180607944,1.30637246,3125.2,3124.4,0.13685975]
[1768180608144,1.30637246,3125.2,3124.3,0.71079848]
[1768180608346,1.30637246,3125.2,3124.3,0.84765823]
[1768180610648,1.30637246,3125.2,3124.3,0.13685975]
[1768180612143,5.315,3125.1,3124.3,0.13685975]
[1768180615562,5.315,3125.1,3124.1,0.00385163]
[1768180616555,5.315,3125.1,3124.1,0.14071138]
[1768180618258,5.315,3125.1,3124.1,0.00385163]
[1768180618559,5.315,3125.1,3123.5,0.13685975]
[1768180619363,5.315,3125.1,3123.5,0.13998309]
[1768180619561,5.315,3125.0,3123.5,0.13998309]
[1768180619757,6.622,3124.9,3123.5,0.13998309]
[1768180619954,1.307,3124.8,3123.5,0.13998309]
[1768180622757,1.307,3125.0,3123.5,0.13998309]
[1768180623559,0.00237246,3125.2,3124.0,0.13685975]
[1768180623865,1.307,3125.8,3124.2,0.13685975]
[1768180624866,1.31084908,3125.8,3124.2,0.13685975]
[1768180625671,0.00384908,3125.8,3124.2,0.13685975]
[1768180628962,0.00384908,3125.8,3124.4,0.13763314]
[1768180629165,0.00384908,3125.8,3124.4,0.29788314]
[1768180629364,0.00384908,3125.8,3124.5,0.13763314]
[1768180632575,1.306,3126.8,3124.8,0.13649235]
[1768180633565,0.16014,3126.7,3124.8,0.13649235]
[1768180637275,0.16014,3126.6,3124.8,0.13649235]
[1768180637873,0.16016,3126.1,3124.8,0.13649235]
[1768180638074,5.315,3125.9,3124.8,0.13649235]
[1768180638376,1.307,3126.0,3124.8,0.13649235]
[1768180639281,5.315,3126.7,3124.8,0.13649235]
[1768180639476,5.315,3126.5,3124.8,0.13649235]
[1768180645479,5.47514,3126.5,3124.8,0.13649235]
[1768180648277,0.16016,3126.2,3124.3,1.57669235]
[1768180648584,0.16016,3126.2,3124.4,0.13649235]
[1768180650280,0.16021,3125.2,3123.5,0.13961569]
[1768180650472,6.621,3125.1,3123.5,0.13961569]
[1768180650674,6.621,3125.1,3123.5,0.00312334]
[1768180650874,0.16022,3124.9,3123.5,0.00312334]
[1768180652186,6.05666489,3125.8,3123.5,0.13961569]
[1768180652389,0.1602,3125.5,3123.5,0.13961569]
[1768180652588,5.81003482,3125.4,3123.5,0.13961569]
[1768180652791,5.315,3125.2,3123.5,0.13961569]
[1768180652985,0.1602,3125.4,3123.5,0.13961569]
[1768180653190,1.307,3125.4,3123.5,0.13961569]
[1768180653879,3.36418,3125.9,3123.5,0.13961569]
[1768180653880,0.16018,3125.9,3123.5,0.13961569]
[1768180654081,1.64173965,3125.8,3123.5,1.18291569]
[1768180654292,0.33473965,3125.7,3123.6,0.14291729]
[1768180654480,1.307,3125.8,3123.6,0.14291729]
[1768180654682,0.33465637,3125.7,3123.6,0.14291729]
[1768180654989,1.307,3125.8,3123.6,0.14291729]
[1768180655188,0.33465064,3125.7,3123.6,0.14291729]
[1768180655388,0.16014,3126.6,3123.9,0.14291729]
[1768180655691,0.16015,3126.4,3123.9,0.14291729]
[1768180655890,0.3346118,3126.3,3123.9,0.14291729]
[1768180656190,0.16015,3126.4,3123.9,0.14291729]
[1768180656390,0.33458884,3126.3,3123.9,0.14291729]
[1768180656585,0.16015,3126.4,3123.9,0.14291729]
[1768180656791,0.3345878,3126.3,3123.9,0.14291729]
[1768180656992,0.16015,3126.4,3123.9,0.14291729]
[1768180657192,0.33458763,3126.3,3123.9,0.14291729]
[1768180657490,0.16015,3126.4,3123.9,0.14291729]
[1768180657686,0.33458682,3126.3,3123.9,0.14291729]
[1768180657893,0.16015,3126.4,3123.9,0.14291729]
[1768180658091,0.3345866,3126.3,3123.9,0.14291729]
[1768180658284,0.3345866,3126.2,3123.9,0.14291729]
[1768180658479,0.16015,3126.4,3123.9,0.14291729]
[1768180658786,0.33458632,3126.3,3123.9,0.14291729]
[1768180658986,0.33458632,3126.2,3123.9,0.14291729]
[1768180659190,0.16015,3126.4,3123.9,0.14291729]
[1768180659390,0.33458119,3126.3,3123.9,0.14291729]
[1768180659589,0.16015,3126.4,3123.9,0.14291729]
[1768180659590,0.33458119,3126.2,3123.9,0.14291729]
[1768180659893,0.16015,3126.4,3123.9,0.14291729]
[1768180660083,0.33459076,3126.3,3123.9,0.14291729]
[1768180660392,0.33459076,3126.2,3123.9,0.14291729]
[1768180660692,0.16015,3126.4,3123.9,0.14291729]
[1768180660892,0.33460258,3126.3,3124.0,0.14291729]
[1768180661094,0.33460258,3126.2,3124.0,0.14291729]
[1768180661283,0.16015,3126.4,3124.0,0.14291729]
[1768180661589,0.33461594,3126.3,3124.0,0.14291729]
[1768180661789,0.33461594,3126.2,3124.0,0.14291729]
[1768180662088,0.16015,3126.4,3124.0,0.14291729]
[1768180662299,5.315,3126.2,3124.0,0.14291729]
[1768180663188,1.307,3126.3,3124.2,0.14291729]
[1768180663584,5.315,3126.5,3124.4,0.14291729]
[1768180663787,5.315,3126.5,3124.5,0.14291729]
[1768180665396,0.16015,3126.3,3124.5,0.14291729]
[1768180665594,0.16016,3126.1,3124.5,0.14291729]
[1768180669297,6.89101879,3126.5,3124.5,0.14291729]
[1768180669492,0.16013,3126.7,3124.5,0.14291729]
[1768180669693,1.46813,3126.7,3124.5,0.14291729]
[1768180670003,1.308,3126.7,3124.9,0.14291729]
[1768180670202,0.00311845,3126.8,3125.4,0.14291729]
[1768180670392,0.25201644,3127.1,3125.8,0.14291729]
[1768180670593,0.31505,3127.7,3125.8,0.14291729]
[1768180670998,0.31505,3127.7,3125.9,0.14291729]
[1768180671198,0.31505,3127.7,3126.0,0.14291729]
[1768180671392,0.31874994,3127.7,3126.1,1.57601879]
[1768180671597,0.31874994,3127.7,3126.4,0.14291729]
[1768180672103,1.307,3128.5,3126.4,0.14291729]
[1768180672402,1.307,3128.8,3126.5,0.14291729]
[1768180673202,1.31026318,3128.8,3126.5,0.14291729]
[1768180674000,1.44942562,3128.8,3126.5,0.14291729]
[1768180674197,0.13916244,3128.7,3126.5,0.14291729]
[1768180675298,0.13916244,3128.5,3126.5,0.14291729]
[1768180676198,0.13916244,3128.5,3126.0,0.14686794]
[1768180676500,0.13916244,3128.5,3126.1,11.84291729]
[1768180676802,0.13916244,3128.5,3126.2,0.14291729]
[1768180679496,0.13916244,3128.5,3126.2,0.30307729]
[1768180679699,0.13916244,3128.4,3126.2,0.30307729]
[1768180680604,0.13916244,3128.4,3126.3,0.14291729]
[1768180680989,0.00326318,3128.8,3126.5,0.14291729]
[1768180681193,0.14242562,3128.8,3126.5,0.14291729]
[1768180681790,0.14242562,3128.8,3126.9,0.14291729]
[1768180682204,0.00326318,3128.8,3126.9,0.14291729]
[1768180683110,0.00326318,3128.8,3126.9,0.30303729]
[1768180683298,0.00326318,3128.8,3127.0,0.14291729]
[1768180684107,0.00326318,3128.8,3127.2,0.14511006]
[1768180686707,0.13584374,3128.8,3127.2,0.14511006]
[1768180687008,0.13584374,3128.8,3126.7,0.14511006]
[1768180687203,0.00326318,3128.8,3126.7,0.14511006]
[1768180687404,0.00326318,3128.8,3127.1,0.14511006]
[1768180689409,0.00326318,3128.8,3127.3,0.30521006]
[1768180689612,0.00326318,3128.8,3127.5,0.1355893]
[1768180690301,10.342,3129.7,3127.6,0.1355893]
[1768180690504,0.13245024,3129.9,3128.1,0.1355893]
[1768180690803,0.15996,3130.1,3128.1,0.1355893]
[1768180691308,0.13245024,3130.4,3128.2,0.1355893]
[1768180691511,0.00318677,3130.1,3128.3,0.1355893]
[1768180693806,0.13563701,3130.1,3128.2,0.003871]
[1768180694210,0.13245024,3129.8,3128.2,0.003871]
[1768180694408,0.29243024,3129.7,3128.2,0.003871]
[1768180694615,1.70846903,3129.4,3128.2,0.003871]
[1768180694815,0.13245024,3129.3,3128.2,0.003871]
[1768180695015,0.13245024,3129.3,3127.2,0.1355893]
[1768180695016,0.13245024,3129.2,3127.2,0.1355893]
[1768180696019,0.13245024,3129.2,3127.2,0.13963047]
[1768180696218,0.13245024,3129.7,3127.3,0.1355893]
[1768180696522,0.13245024,3129.6,3127.3,0.1355893]
[1768180698217,0.13245024,3129.4,3127.3,0.1355893]
[1768180698422,0.13245024,3129.3,3127.3,0.1355893]
[1768180700234,0.13245024,3129.2,3127.2,0.16415117]
[1768180700719,0.13245024,3129.2,3127.2,0.29974047]
[1768180700925,0.13245024,3129.2,3127.3,0.1355893]
[1768180703330,0.29246024,3129.2,3127.2,0.00404117]
[1768180703524,0.13245024,3129.1,3127.2,0.00404117]
[1768180704025,0.13245024,3128.8,3127.2,0.00404117]
[1768180705025,0.29248024,3128.8,3127.2,0.00404117]
[1768180706326,8.19601879,3129.3,3127.2,0.00404117]
[1768180706327,0.29245024,3129.3,3127.2,0.13963047]
[1768180706627,0.33429459,3129.2,3127.3,0.1355893]
[1768180706817,0.29245024,3129.3,3127.4,0.1355893]
[1768180707339,0.13245024,3129.2,3127.4,0.1355893]
[1768180707724,0.13245024,3129.2,3127.3,0.1601]
[1768180709331,0.13245024,3128.7,3127.2,0.00404117]
[1768180710027,0.13245024,3129.2,3127.2,0.13963047]
[1768180710223,0.33455184,3129.1,3127.2,0.13963047]
[1768180710429,0.13245024,3129.2,3127.2,0.13963047]
[1768180710729,0.33456451,3129.1,3127.2,0.13963047]
[1768180710924,0.29246024,3129.2,3127.2,0.13963047]
[1768180711121,0.33456392,3129.1,3127.2,0.13963047]
[1768180711328,0.29246024,3129.2,3127.2,0.13963047]
[1768180711927,0.13245024,3129.1,3127.2,0.13963047]
[1768180712631,0.13245024,3129.1,3127.3,0.1601]
[1768180712825,0.13245024,3128.9,3127.2,0.00404117]
[1768180713024,0.13245024,3128.8,3127.2,0.00404117]
[1768180714436,0.13245024,3128.8,3127.2,0.14612516]
[1768180714636,6.04966489,3129.5,3127.3,0.14208399]
[1768180714637,6.75639206,3129.3,3127.3,0.14208399]
[1768180715829,5.45139206,3129.3,3127.3,0.14208399]
[1768180716927,0.13639206,3129.3,3127.3,0.14208399]
[1768180718634,0.13639206,3129.1,3127.3,0.14208399]
[1768180719035,0.29641206,3129.0,3127.2,0.00404117]
[1768180719235,0.29641206,3128.9,3127.2,0.00404117]
[1768180719437,0.13639206,3128.8,3127.2,0.00404117]
[1768180719739,0.29642206,3128.7,3127.2,0.00404117]
[1768180719939,0.13639206,3128.6,3127.2,0.00404117]
[1768180720530,1.44139206,3128.6,3127.2,0.00404117]
[1768180720730,0.13639206,3128.5,3127.2,0.00404117]
[1768180723445,0.16003,3128.7,3127.2,0.00404117]
[1768180724941,0.29642206,3128.7,3127.2,0.00404117]
[1768180726136,0.13639206,3128.6,3127.2,0.00404117]
[1768180727839,0.13639206,3128.5,3127.2,0.00404117]
[1768180729035,0.13639206,3128.5,3127.3,1.0835]
[1768180729934,0.13639206,3128.4,3127.3,1.0835]
[1768180730245,0.16005,3128.3,3127.3,0.75789503]
[1768180731643,5.315,3128.5,3127.3,0.75789503]
[1768180731843,1.306,3128.4,3127.3,0.89997902]
[1768180732234,5.315,3128.5,3127.3,0.89997902]
[1768180732439,1.306,3128.5,3127.4,0.14208399]
[1768180732742,5.47502,3128.9,3127.4,0.14208399]
[1768180732949,1.306,3128.7,3127.4,0.14208399]
[1768180734938,1.307,3128.7,3127.4,0.14208399]
[1768180735951,0.16004,3128.6,3127.3,0.75789503]
[1768180736146,0.16005,3128.3,3127.2,0.00404117]
[1768180736956,0.16006,3128.2,3127.2,0.00404117]
[1768180738949,5.315,3128.1,3125.8,0.14208399]
[1768180739148,0.16008,3127.8,3125.8,0.14208399]
[1768180739355,1.308,3127.7,3125.8,0.14208399]
[1768180740051,1.31190387,3127.7,3125.8,0.14474268]
[1768180740241,1.31190387,3127.7,3125.8,1.21124268]
[1768180740242,1.57237556,3127.7,3125.8,1.21124268]
[1768180740442,1.31190387,3127.7,3125.9,0.14208399]
[1768180741151,1.56677457,3127.7,3125.9,0.14208399]
[1768180741653,0.00390387,3127.7,3125.9,0.14208399]
[1768180747043,5.32090387,3127.7,3125.9,0.14208399]
[1768180747243,0.00390387,3127.7,3125.9,0.14208399]
[1768180747639,0.00390387,3127.7,3126.1,0.14498405]
[1768180747846,0.00390387,3127.7,3126.3,0.14498405]
[1768180748039,0.00390387,3127.7,3126.5,0.14498405]
[1768180750249,10.50203,3128.7,3126.5,0.14498405]
[1768180750456,0.16003,3128.7,3126.6,0.13592351]
[1768180750648,0.33474248,3128.6,3126.6,0.13592351]
[1768180750848,0.16003,3128.7,3126.6,0.13592351]
[1768180751355,0.33476037,3128.6,3126.6,0.13592351]
[1768180751541,0.16409694,3128.7,3126.6,0.13592351]
[1768180751741,0.00406694,3128.7,3126.6,0.13592351]
[1768180752142,5.65176032,3128.6,3126.6,0.13592351]
[1768180752363,0.16004,3128.5,3126.6,0.13592351]
[1768180752657,0.16006,3128.1,3126.6,0.13592351]
[1768180752849,0.16007,3128.0,3126.1,0.13592351]
[1768180753046,0.00363118,3128.5,3126.1,0.13592351]
[1768180753248,0.16009,3127.6,3126.1,0.13592351]
[1768180755759,0.16009,3127.6,3125.8,1.06915869]
[1768180755951,0.16009,3127.6,3125.9,0.13592351]
[1768180757957,1.308,3127.6,3125.9,0.13592351]
[1768180758954,0.16006,3128.1,3126.0,0.13592351]
[1768180759158,1.309,3128.0,3126.0,0.13592351]
[1768180760555,0.16007,3127.9,3126.0,0.13592351]
[1768180760756,6.626,3128.0,3126.0,0.13592351]
[1768180760956,0.16008,3127.7,3126.0,0.13592351]
[1768180765167,1.31,3127.6,3126.0,0.13592351]
[1768180767565,8.16566489,3128.0,3126.0,0.13592351]
[1768180767766,6.628,3127.9,3126.0,0.13592351]
[1768180768157,9.40072489,3128.2,3126.0,0.13592351]
[1768180768461,1.311,3128.1,3126.1,0.13592351]
[1768180768868,1.312,3128.0,3126.4,0.13592351]
[1768180772266,0.16005,3128.4,3126.4,0.13592351]
[1768180772570,1.312,3128.0,3126.4,0.13592351]
[1768180773066,1.312,3128.1,3126.4,0.13592351]
[1768180773771,1.312,3128.3,3126.5,0.13592351]
[1768180774370,9.24473183,3128.7,3125.8,1.06915869]
[1768180774371,6.39606694,3128.7,3126.7,0.13339494]
[1768180774570,1.312,3128.6,3126.7,0.13339494]
[1768180775870,1.47204,3128.6,3126.7,0.13339494]
[1768180777969,5.317,3128.5,3126.7,0.13339494]
[1768180780576,1.47204,3128.6,3126.7,0.13339494]
[1768180782176,1.47204,3128.6,3126.8,0.13339494]
[1768180782568,1.47204,3128.6,3126.9,0.13339494]
[1768180783275,0.00406694,3128.7,3126.9,0.13339494]
[1768180783477,0.00406694,3128.7,3127.0,0.13339494]
[1768180788282,0.00406694,3128.7,3127.1,0.13339494]
[1768180789478,0.00406694,3128.7,3127.3,0.13339494]
[1768180792580,0.00406694,3128.7,3127.5,0.16009]
[1768180792782,0.00406694,3128.7,3127.6,0.13339494]
[1768180799288,0.00406694,3128.7,3127.0,0.13339494]
[1768180799487,0.00406694,3128.7,3126.6,2.89880923]
[1768180799488,0.16007,3128.0,3126.6,0.13339494]
[1768180799687,6.88954461,3127.8,3126.6,0.13339494]
[1768180799894,6.88954461,3127.8,3125.9,0.13339494]
[1768180800083,6.88954461,3127.8,3126.7,1.072]
[1768180800280,5.317,3127.8,3126.7,1.072]
[1768180802090,0.16007,3127.9,3126.7,1.072]
[1768180802298,0.16007,3127.9,3126.8,0.13339494]
[1768180802299,1.47207,3127.9,3126.8,0.13339494]
[1768180802494,1.47207,3127.9,3126.7,1.072]
[1768180802694,1.57254461,3127.8,3126.7,1.072]
[1768180804004,7.04958461,3128.5,3126.7,1.20901906]
[1768180804189,0.16005,3128.3,3126.7,1.20901906]
[1768180804388,4.515,3128.2,3126.7,1.20901906]
[1768180805489,0.16005,3128.3,3126.7,1.20901906]
[1768180805690,1.314,3128.1,3126.7,1.20901906]
[1768180806294,6.16005,3128.3,3126.7,1.20901906]
[1768180806488,0.16005,3128.3,3126.8,0.13701906]
[1768180806702,2.85273183,3128.7,3126.8,0.13701906]
[1768180806893,1.314,3128.6,3126.8,0.13701906]
[1768180807601,1.315,3128.5,3126.8,0.13701906]
[1768180809003,1.31906694,3128.7,3126.8,0.13701906]
[1768180811705,0.00406694,3128.7,3126.8,0.13701906]
[1768180812408,0.00406694,3128.7,3127.0,0.13948927]
[1768180816406,0.00406694,3128.7,3126.7,1.072]
[1768180816407,0.16006,3128.1,3126.7,1.072]
[1768180816611,1.47406,3128.1,3126.7,1.072]
[1768180817007,1.47406,3128.1,3126.7,1.21148927]
[1768180817611,1.314,3128.1,3126.7,1.21148927]
[1768180817814,1.57254461,3128.4,3126.8,0.13948927]
[1768180818107,0.16409694,3128.7,3126.8,0.13948927]
[1768180818300,1.314,3128.6,3126.8,0.13948927]
[1768180818507,1.47404,3128.6,3126.8,0.13948927]
[1768180820719,0.16004,3128.5,3126.8,0.13948927]
[1768180824210,1.314,3128.6,3126.7,1.072]
[1768180824211,6.09410179,3128.4,3126.7,1.072]
[1768180824419,0.16005,3128.3,3126.7,1.072]
[1768180824614,1.57254461,3127.9,3126.7,1.072]
[1768180824817,7.04961461,3127.9,3126.7,1.072]
[1768180825811,1.317,3127.8,3126.7,1.072]
[1768180827113,1.73261461,3127.9,3126.7,1.072]
[1768180827312,1.318,3127.8,3126.8,0.13948927]
[1768180828317,1.57254461,3128.4,3126.8,0.13948927]
[1768180828511,4.8546322,3128.3,3126.8,0.13948927]
[1768180828814,4.52,3128.3,3126.8,0.13948927]
[1768180829318,0.33467727,3128.2,3126.8,0.13948927]
[1768180829508,1.319,3128.2,3126.8,0.13948927]
[1768180830222,1.47906,3128.2,3126.8,0.13948927]
[1768180830818,1.57254461,3127.9,3125.9,0.13948927]
[1768180832420,1.319,3127.8,3125.9,0.13948927]
[1768180832916,1.57254461,3127.9,3125.9,0.13948927]
[1768180833121,1.319,3127.8,3125.9,0.13948927]
[1768180833823,1.319,3127.8,3126.1,0.13948927]
[1768180834423,1.319,3127.7,3126.1,0.13948927]
[1768180834816,3.202,3128.5,3126.4,0.14143277]